bitfinex-derivatives/quotes_ETHF0:USTF0_20241008
["timestamp","ask_amount","ask_price","bid_price","bid_amount"]
[1728360054915,0.286,2440.6,2440.5,0.40981]
[1728360055221,0.286,2440.6,2440.5,1.88981]
[1728360055222,0.4268,2440.6,2440.5,1.88981]
[1728360055411,0.4221,2440.7,2440.5,1.48]
[1728360055611,0.825,2441.0,2440.9,0.40974]
[1728360055812,0.825,2441.0,2440.4,2.20156]
[1728360055813,1.2471,2441.0,2440.3,2.75195762]
[1728360056009,1.65683,2441.0,2440.8,1.48]
[1728360056214,1.2471,2441.0,2440.9,1.48]
[1728360057418,0.8218,2441.0,2440.9,1.88974]
[1728360058317,0.6715,2441.3,2440.9,1.88974]
[1728360058318,1.08118,2441.3,2441.1,0.4097]
[1728360058630,1.1782,2441.3,2440.6,0.476]
[1728360058812,1.1782,2441.3,2440.7,2.28887]
[1728360058813,3.2078,2441.1,2440.7,2.28887]
[1728360059011,0.40975,2440.9,2440.7,0.80887]
[1728360059213,0.4036,2440.8,2440.7,2.28887]
[1728360059506,0.7927,2440.8,2440.7,2.28887]
[1728360060917,0.3855,2441.3,2441.0,0.40971]
[1728360061213,0.3855,2441.3,2441.0,1.48]
[1728360061214,0.7897,2441.2,2441.0,1.48]
[1728360061522,0.40972,2441.0,2440.8,1.88975]
[1728360062213,0.40974,2440.9,2440.8,1.88975]
[1728360062519,0.40974,2440.9,2440.8,1.48]
[1728360062724,3.2078,2441.1,2440.7,0.80887]
[1728360062923,0.8097,2440.8,2440.7,0.80887]
[1728360064523,8.1143,2440.8,2440.4,0.476]
[1728360064820,0.40979,2440.6,2440.5,0.4098]
[1728360065539,0.3912,2440.7,2440.3,1.8812]
[1728360065725,0.3912,2440.7,2440.6,0.40979]
[1728360066524,0.80098,2440.7,2440.6,0.40979]
[1728360067219,0.3912,2440.7,2440.6,0.40979]
[1728360067428,0.80098,2440.7,2440.6,0.40979]
[1728360069727,0.3912,2440.7,2440.6,0.40979]
[1728360070027,0.80098,2440.7,2440.6,0.40979]
[1728360074427,0.4098,2440.6,2440.5,0.4098]
[1728360075536,0.80099,2440.7,2440.4,1.48]
[1728360075725,0.80099,2440.7,2440.6,0.40979]
[1728360079237,0.4098,2440.6,2440.5,0.4098]
[1728360083239,0.80099,2440.7,2440.6,0.40979]
[1728360083838,0.4098,2440.6,2440.5,0.4098]
[1728360084336,0.80098,2440.7,2440.6,0.40979]
[1728360085837,0.4098,2440.6,2440.5,0.4098]
[1728360089339,4.00878,2440.7,2440.6,0.40979]
[1728360090035,3.599,2440.7,2440.4,1.8942]
[1728360090339,0.4098,2440.6,2440.5,0.4098]
[1728360090731,3.599,2440.7,2440.4,0.4142]
[1728360091136,4.00879,2440.7,2440.6,0.40979]
[1728360091438,0.80099,2440.7,2440.6,0.40979]
[1728360091937,0.80099,2440.7,2440.6,0.80029]
[1728360092143,0.80099,2440.7,2440.6,0.3905]
[1728360101139,0.40982,2440.5,2440.4,0.40982]
[1728360101355,0.40983,2440.4,2440.3,0.40984]
[1728360101945,2.28099,2440.7,2440.3,0.40984]
[1728360102165,0.40982,2440.5,2440.3,0.40984]
[1728360102337,0.40983,2440.4,2440.3,0.40984]
[1728360102535,0.79573,2440.4,2440.3,0.40984]
[1728360103235,0.3859,2440.4,2440.3,0.40984]
[1728360103432,0.79573,2440.4,2440.3,0.40984]
[1728360103937,0.3859,2440.4,2440.3,0.40984]
[1728360104343,0.79573,2440.4,2440.3,0.40984]
[1728360108147,0.3859,2440.4,2440.3,0.40984]
[1728360108648,0.8109,2440.4,2440.3,0.40984]
[1728360113046,1.2239,2440.6,2440.5,0.40981]
[1728360113546,0.8141,2440.6,2440.5,0.40981]
[1728360113738,0.8141,2440.6,2440.5,0.80881]
[1728360115047,1.22389,2440.6,2440.5,0.80881]
[1728360115354,0.8141,2440.6,2440.5,0.80881]
[1728360117248,1.22389,2440.6,2440.5,0.80881]
[1728360119954,0.80098,2440.7,2440.6,0.40979]
[1728360120147,0.40979,2440.6,2440.5,0.8088]
[1728360121554,0.80098,2440.7,2440.6,0.40979]
[1728360121971,0.80098,2440.7,2440.6,1.88979]
[1728360123365,0.80098,2440.7,2440.6,1.48]
[1728360124760,1.22398,2440.7,2440.6,1.48]
[1728360124963,0.8142,2440.7,2440.5,1.22869]
[1728360125157,0.8142,2440.7,2440.5,0.8189]
[1728360125349,0.40979,2440.6,2440.5,1.2287]
[1728360125960,0.8142,2440.7,2440.5,0.8189]
[1728360126156,0.40979,2440.6,2440.5,1.2287]
[1728360126961,1.22399,2440.7,2440.6,0.40979]
[1728360127355,1.22399,2440.7,2440.5,1.22869]
[1728360127356,0.40979,2440.6,2440.5,1.22869]
[1728360130370,0.40979,2440.6,2440.5,0.8189]
[1728360131662,0.40979,2440.6,2440.5,1.22871]
[1728360133664,0.40979,2440.6,2440.5,0.399]
[1728360133870,0.40979,2440.6,2440.5,0.80881]
[1728360134056,0.8142,2440.7,2440.5,0.80881]
[1728360134255,1.44881,2440.8,2440.5,0.80881]
[1728360134256,0.4244,2440.8,2440.5,1.879]
[1728360134494,0.4244,2440.8,2440.7,1.48]
[1728360134661,0.4244,2440.8,2440.6,0.40978]
[1728360134865,0.40978,2440.7,2440.6,0.40978]
[1728360135768,0.4244,2440.8,2440.5,1.879]
[1728360136071,0.83417,2440.8,2440.7,0.40978]
[1728360136272,0.40978,2440.7,2440.6,0.40978]
[1728360136470,0.83417,2440.8,2440.7,0.40978]
[1728360136666,0.4244,2440.8,2440.6,1.48]
[1728360136970,0.40978,2440.7,2440.6,1.88978]
[1728360137280,0.83417,2440.8,2440.7,0.40978]
[1728360138264,0.40978,2440.7,2440.6,2.28138]
[1728360139374,0.83417,2440.8,2440.7,0.40978]
[1728360140373,0.40978,2440.7,2440.6,1.88979]
[1728360140568,0.40978,2440.7,2440.6,0.40979]
[1728360143376,0.83417,2440.8,2440.7,0.40978]
[1728360147379,0.4244,2440.8,2440.5,1.879]
[1728360147780,0.83417,2440.8,2440.7,0.40978]
[1728360152383,0.4244,2440.8,2440.7,1.88978]
[1728360153174,0.4244,2440.8,2440.7,0.40978]
[1728360155690,0.83416,2440.8,2440.7,0.40978]
[1728360156191,0.3903,2440.9,2440.8,0.40976]
[1728360156380,1.18814,2440.9,2440.8,0.40976]
[1728360156581,1.18814,2440.9,2440.6,1.48]
[1728360156787,1.18814,2440.9,2440.8,0.40976]
[1728360159283,1.18814,2440.9,2440.6,1.48]
[1728360159486,1.18814,2440.9,2440.7,0.40976]
[1728360159977,1.18814,2440.9,2440.8,0.4197]
[1728360163391,1.18814,2440.9,2440.8,0.82946]
[1728360164993,1.18814,2440.9,2440.8,0.4197]
[1728360165293,0.7784,2440.9,2440.8,0.82946]
[1728360165497,0.4097,2441.2,2441.1,0.4097]
[1728360165697,4.4284,2441.3,2441.0,1.48]
[1728360165996,0.4097,2441.2,2441.1,0.7949]
[1728360166392,4.4284,2441.3,2441.1,0.7949]
[1728360166891,4.4284,2441.3,2441.1,0.3852]
[1728360167095,4.83809,2441.3,2441.2,0.40969]
[1728360167391,4.83809,2441.3,2441.1,0.7949]
[1728360168194,0.40969,2441.2,2441.1,0.7949]
[1728360169596,4.83809,2441.3,2441.1,0.7949]
[1728360171100,4.83809,2441.3,2441.2,0.40969]
[1728360172294,4.4284,2441.3,2441.2,0.40969]
[1728360173497,4.83807,2441.3,2441.2,0.40969]
[1728360174396,4.4284,2441.3,2441.2,0.40969]
[1728360175793,1.2206,2441.3,2441.2,0.40969]
[1728360176692,1.63027,2441.3,2441.2,0.40969]
[1728360178499,1.2206,2441.3,2441.2,0.40969]
[1728360183803,1.2206,2441.3,2441.1,0.7949]
[1728360184009,0.40969,2441.2,2441.1,0.3852]
[1728360184307,0.40969,2441.2,2441.1,0.79491]
[1728360184501,0.40969,2441.2,2441.1,0.3852]
[1728360185116,0.40969,2441.2,2441.1,0.79491]
[1728360187323,0.40969,2441.2,2441.1,0.40971]
[1728360187597,0.4097,2441.2,2441.1,0.40971]
[1728360190607,0.40972,2441.1,2441.0,0.40972]
[1728360191700,1.48,2441.2,2440.7,3.2078]
[1728360191899,0.40977,2440.8,2440.5,4.197]
[1728360192207,0.4128,2440.7,2440.6,0.80309]
[1728360193099,0.4128,2440.7,2440.6,2.28309]
[1728360194654,0.82258,2440.7,2440.6,2.28309]
[1728360194807,0.4128,2440.7,2440.6,2.28309]
[1728360195102,0.82258,2440.7,2440.6,2.28309]
[1728360195599,0.82258,2440.7,2440.6,0.80309]
[1728360196497,0.4128,2440.7,2440.6,0.80309]
[1728360196739,0.82258,2440.7,2440.6,0.3933]
[1728360197404,0.82258,2440.7,2440.6,0.80309]
[1728360197803,0.82258,2440.7,2440.6,0.3933]
[1728360198105,0.82258,2440.7,2440.6,0.80309]
[1728360200716,0.82258,2440.7,2440.6,0.3933]
[1728360201614,0.82258,2440.7,2440.5,1.48]
[1728360201806,0.7924,2440.6,2440.5,1.88981]
[1728360203116,1.20219,2440.6,2440.5,1.88981]
[1728360205221,0.7924,2440.6,2440.5,1.88981]
[1728360206016,1.20219,2440.6,2440.5,1.88981]
[1728360207147,0.7924,2440.6,2440.5,1.88981]
[1728360207717,1.20219,2440.6,2440.5,1.88981]
[1728360209522,0.7924,2440.6,2440.5,1.88981]
[1728360213318,1.20219,2440.6,2440.5,1.88981]
[1728360215220,0.7924,2440.6,2440.5,1.88981]
[1728360218919,0.4059,2440.6,2440.5,1.88981]
[1728360221328,0.4059,2440.6,2440.1,0.476]
[1728360221527,5.09766,2440.2,2440.1,0.3889]
[1728360221730,5.09766,2440.2,2439.7,7.9558]
[1728360221731,4.6878,2440.2,2439.7,4.197]
[1728360221935,0.4099,2440.0,2439.8,0.3889]
[1728360222432,0.40989,2440.0,2439.8,0.3889]
[1728360222618,1.61079,2440.1,2439.8,0.3889]
[1728360224326,0.40989,2440.0,2439.8,0.3889]
[1728360225426,1.2009,2440.1,2439.8,0.3889]
[1728360225427,0.40991,2439.9,2439.8,0.3889]
[1728360226931,3.61771,2439.9,2439.8,0.3889]
[1728360228431,3.2078,2439.9,2439.5,1.88997]
[1728360228634,0.3872,2439.8,2439.5,1.8832]
[1728360228828,0.40996,2439.6,2439.5,0.4032]
[1728360230339,3.61776,2439.6,2439.5,0.4032]
[1728360232735,0.40999,2439.5,2439.3,2.7073]
[1728360232939,0.83419,2439.5,2439.4,0.40999]
[1728360235733,0.4242,2439.5,2439.4,0.40999]
[1728360237237,3.61776,2439.6,2439.5,0.40998]
[1728360237539,3.2078,2439.6,2439.5,0.40998]
[1728360237741,3.61776,2439.6,2439.5,0.40998]
[1728360239239,3.2078,2439.6,2439.5,0.40998]
[1728360239643,3.61776,2439.6,2439.5,0.40998]
[1728360239944,3.2078,2439.6,2439.5,0.40998]
[1728360240340,3.61776,2439.6,2439.5,0.40998]
[1728360240564,3.2078,2439.6,2439.5,0.40998]
[1728360240848,0.286,2440.0,2439.5,4.0992]
[1728360241040,0.40991,2440.0,2439.9,0.40989]
[1728360241541,4.02959,2440.1,2440.0,0.40989]
[1728360241739,3.6197,2440.1,2440.0,1.88989]
[1728360241939,3.2078,2440.1,2440.0,1.88989]
[1728360245150,0.40986,2440.2,2440.1,0.40988]
[1728360246147,3.2078,2440.3,2440.0,1.48]
[1728360246344,3.61765,2440.3,2440.2,0.40986]
[1728360247350,3.2078,2440.3,2440.0,1.48]
[1728360247550,3.2078,2440.3,2440.1,0.40986]
[1728360247551,3.61765,2440.3,2440.1,0.40986]
[1728360247944,0.40986,2440.2,2440.1,0.40987]
[1728360248142,3.2078,2440.3,2440.0,1.48]
[1728360248448,3.61765,2440.3,2440.2,0.40986]
[1728360248949,3.2078,2440.3,2440.0,1.48]
[1728360249251,3.2078,2440.3,2440.1,0.40987]
[1728360249448,3.61765,2440.3,2440.1,0.40987]
[1728360249945,3.61765,2440.3,2440.1,0.40988]
[1728360250849,3.61765,2440.3,2440.0,1.48]
[1728360251054,3.61765,2440.3,2440.2,0.40986]
[1728360254051,0.40985,2440.3,2440.2,0.40986]
[1728360254446,3.61765,2440.3,2440.2,0.40986]
[1728360255349,3.2078,2440.3,2439.9,0.4269]
[1728360255550,0.40987,2440.2,2440.1,0.40987]
[1728360259266,0.40988,2440.1,2440.0,0.83218]
[1728360259562,0.8036,2440.1,2440.0,0.83218]
[1728360261260,1.21348,2440.1,2440.0,0.83218]
[1728360261553,0.8036,2440.1,2440.0,0.83218]
[1728360261960,1.21348,2440.1,2440.0,0.83218]
[1728360265256,0.8036,2440.1,2440.0,2.31218]
[1728360265562,0.40987,2440.2,2440.1,0.40986]
[1728360266555,4.42975,2440.3,2440.2,0.40986]
[1728360269884,4.0199,2440.3,2440.0,1.9023]
[1728360270063,0.40986,2440.2,2440.1,0.40986]
[1728360270359,4.0199,2440.3,2440.0,1.9023]
[1728360270560,4.42975,2440.3,2440.2,0.40986]
[1728360271968,0.40986,2440.2,2440.1,0.40986]
[1728360272261,4.0199,2440.3,2440.0,0.4223]
[1728360272465,4.42975,2440.3,2440.2,0.40986]
[1728360273571,4.0199,2440.3,2440.2,0.40986]
[1728360274467,4.42974,2440.3,2440.2,0.40986]
[1728360274667,4.0199,2440.3,2440.2,0.40986]
[1728360274879,3.2078,2440.3,2440.2,0.40986]
[1728360276868,3.2078,2440.3,2440.2,1.88986]
[1728360277077,3.9179,2440.7,2440.6,0.40979]
[1728360277277,3.2078,2440.7,2440.6,5.98739]
[1728360277577,0.286,2441.0,2440.9,0.40974]
[1728360277578,0.7129,2441.0,2440.9,0.40974]
[1728360277770,0.4269,2441.0,2440.9,0.40974]
[1728360277965,0.83662,2441.0,2440.9,0.40974]
[1728360278469,0.4269,2441.0,2440.7,1.2044]
[1728360278672,0.83663,2441.0,2440.8,0.40975]
[1728360279072,0.83663,2441.0,2440.9,0.40974]
[1728360279573,0.4269,2441.0,2440.9,0.40974]
[1728360281499,0.40972,2441.1,2441.0,0.40972]
[1728360281772,0.81532,2441.1,2440.9,0.40973]
[1728360283869,0.40972,2441.0,2440.9,0.40973]
[1728360284068,0.4056,2441.1,2440.9,0.40973]
[1728360284571,0.40972,2441.0,2440.9,0.40973]
[1728360284972,0.4056,2441.1,2440.9,0.40973]
[1728360285271,0.81532,2441.1,2440.9,0.40973]
[1728360291171,0.81531,2441.1,2441.0,0.40972]
[1728360291376,0.81531,2441.1,2441.0,0.80112]
[1728360294186,12.94010896,2441.4,2441.0,0.80112]
[1728360294187,10.43593896,2441.4,2441.0,1.8714]
[1728360294376,11.26199896,2441.4,2441.3,1.88967]
[1728360294878,10.85233896,2441.4,2441.3,1.88967]
[1728360295283,11.26199896,2441.4,2441.3,1.88967]
[1728360297576,10.85233896,2441.4,2441.3,1.88967]
[1728360298185,10.43593896,2441.4,2441.3,1.88967]
[1728360299287,10.84559896,2441.4,2441.3,1.88967]
[1728360300089,10.43593896,2441.4,2441.3,1.88967]
[1728360300688,3.2078,2441.6,2441.5,0.40964]
[1728360301486,0.40962,2441.7,2441.6,0.40962]
[1728360301679,0.40963,2441.6,2441.5,0.40963]
[1728360301889,0.36763,2441.6,2441.5,0.40963]
[1728360303182,1.2301,2441.8,2441.4,1.9003]
[1728360303389,0.40963,2441.6,2441.5,0.40963]
[1728360305695,3.2078,2441.7,2441.4,1.9003]
[1728360305994,3.2078,2441.7,2441.6,0.40962]
[1728360306397,3.2078,2441.7,2441.6,1.88962]
[1728360306591,3.2078,2441.7,2441.6,5.98482]
[1728360307398,0.40956,2442.0,2441.9,0.40957]
[1728360307892,1.178,2442.1,2441.7,1.8799]
[1728360307893,0.40958,2441.9,2441.8,0.40957]
[1728360311988,3.2078,2442.0,2441.7,0.3999]
[1728360311989,3.61736,2442.0,2441.9,0.40957]
[1728360314492,3.2078,2442.0,2441.7,0.3999]
[1728360315093,3.61737,2442.0,2441.9,0.40957]
[1728360315898,3.2078,2442.0,2441.7,0.3999]
[1728360316197,0.40958,2441.9,2441.8,0.40958]
[1728360316495,3.61737,2442.0,2441.9,0.40957]
[1728360319206,0.40957,2442.0,2441.9,0.40957]
[1728360319592,4.3858,2442.1,2441.7,0.3999]
[1728360319794,0.40957,2442.0,2441.9,0.40957]
[1728360323998,0.40958,2441.9,2441.8,0.40958]
[1728360326509,4.0952,2441.9,2441.4,0.476]
[1728360326811,0.40964,2441.5,2441.4,0.40965]
[1728360327208,0.40964,2441.5,2441.3,0.4118]
[1728360327511,0.79656,2441.4,2441.3,0.82147]
[1728360328199,0.3869,2441.4,2441.3,0.82147]
[1728360328401,0.40965,2441.5,2441.3,5.9878]
[1728360328711,0.40965,2441.5,2441.4,0.40966]
[1728360342616,0.3869,2441.6,2441.3,1.8918]
[1728360342822,0.40966,2441.4,2441.3,1.88966]
[1728360345310,0.40967,2441.3,2441.2,2.29818]
[1728360345514,1.57767,2441.3,2441.2,2.29818]
[1728360351216,1.18947,2441.3,2441.2,2.29818]
[1728360352222,0.40967,2441.3,2441.2,2.29818]
[1728360352624,0.40967,2441.4,2441.3,0.40967]
[1728360354420,0.40966,2441.4,2441.3,1.88966]
[1728360356428,0.40963,2441.6,2441.4,0.40966]
[1728360356631,1.02401,2441.8,2441.5,2.6628]
[1728360357228,0.40962,2441.6,2441.5,3.07242]
[1728360357827,0.79791,2441.7,2441.6,0.40962]
[1728360358221,0.40962,2441.6,2441.5,3.07243]
[1728360358728,0.40962,2441.6,2441.5,1.20663]
[1728360358933,1.18962,2441.6,2441.5,0.79943]
[1728360361824,1.18962,2441.6,2441.5,0.3898]
[1728360362035,1.18962,2441.6,2441.5,0.79944]
[1728360362865,0.78,2441.6,2441.5,0.79944]
[1728360363028,0.3883,2441.7,2441.5,1.8698]
[1728360363230,3.2078,2441.8,2441.7,0.40961]
[1728360363231,3.6174,2441.8,2441.7,0.40961]
[1728360363631,3.2078,2441.8,2441.7,1.88961]
[1728360363825,0.40957,2441.9,2441.8,0.40959]
[1728360364227,0.83336,2442.0,2441.9,0.40957]
[1728360364826,0.4238,2442.0,2441.9,0.40957]
[1728360365029,0.83336,2442.0,2441.9,0.40957]
[1728360365225,0.4238,2442.0,2441.9,0.40957]
[1728360365924,0.83336,2442.0,2441.9,0.40957]
[1728360366233,3.999,2442.1,2442.0,0.40956]
[1728360366437,3.999,2442.1,2442.0,1.88956]
[1728360366636,4.40854,2442.1,2442.0,1.88956]
[1728360367140,0.40957,2442.0,2441.9,0.40957]
[1728360371431,0.7912,2442.1,2441.8,4.6878]
[1728360371631,1.20075,2442.1,2442.0,0.40956]
[1728360378744,0.7912,2442.1,2442.0,0.40956]
[1728360383644,1.20074,2442.1,2442.0,0.40956]
[1728360383837,0.7912,2442.1,2442.0,0.40956]
[1728360390450,1.20074,2442.1,2442.0,0.40956]
[1728360390950,0.7912,2442.1,2442.0,0.40956]
[1728360391151,1.20074,2442.1,2442.0,0.40956]
[1728360391551,0.7912,2442.1,2442.0,0.40956]
[1728360393958,1.20074,2442.1,2442.0,0.40956]
[1728360394154,0.7912,2442.1,2442.0,0.40956]
[1728360394852,1.20074,2442.1,2442.0,0.40956]
[1728360395453,0.7912,2442.1,2442.0,0.40956]
[1728360395749,1.20074,2442.1,2442.0,0.40956]
[1728360396252,0.7912,2442.1,2442.0,0.40956]
[1728360399054,3.4938,2442.4,2442.3,0.40951]
[1728360399243,1.13359,2442.8,2442.4,0.40949]
[1728360399244,0.79908,2442.5,2442.4,0.40949]
[1728360399449,0.79908,2442.5,2442.3,1.88949]
[1728360399450,0.40949,2442.4,2442.3,1.88949]
[1728360399657,0.4011,2442.4,2442.3,1.88949]
[1728360399948,1.21889,2442.4,2442.3,0.40949]
[1728360400151,0.8094,2442.4,2442.3,0.40949]
[1728360401261,1.21889,2442.4,2442.3,0.40949]
[1728360401651,0.40951,2442.3,2442.2,0.80021]
[1728360403450,0.40951,2442.3,2442.2,0.40951]
[1728360406648,0.40952,2442.3,2442.2,0.40952]
[1728360407758,0.8094,2442.4,2442.0,2.2962]
[1728360408066,0.81013,2442.2,2442.1,0.40953]
[1728360408963,0.4006,2442.2,2442.1,0.40953]
[1728360409466,0.81012,2442.2,2442.1,0.40953]
[1728360411460,0.4006,2442.2,2442.1,0.40953]
[1728360411656,0.8094,2442.4,2442.3,0.40951]
[1728360411860,1.21889,2442.4,2442.3,0.40951]
[1728360412066,0.8094,2442.4,2442.3,0.40951]
[1728360412266,0.8094,2442.4,2442.3,0.80261]
[1728360413566,1.21889,2442.4,2442.3,0.80261]
[1728360414565,1.21889,2442.4,2442.3,0.40951]
[1728360414897,1.21889,2442.4,2442.2,0.40951]
[1728360414898,0.40952,2442.3,2442.2,0.40951]
[1728360415763,1.21891,2442.4,2442.3,0.40951]
[1728360420567,1.21891,2442.4,2442.1,1.8731]
[1728360420568,0.40952,2442.2,2442.1,0.3931]
[1728360420774,0.40955,2442.1,2442.0,0.40955]
[1728360420972,0.82145,2442.1,2442.0,0.40955]
[1728360421268,0.4119,2442.1,2442.0,0.40955]
[1728360421666,0.8297,2442.1,2442.0,0.40955]
[1728360428476,1.23924,2442.1,2442.0,0.40955]
[1728360429073,0.8297,2442.1,2442.0,0.40955]
[1728360429510,0.4096,2441.8,2441.7,0.40959]
[1728360429671,0.40959,2441.9,2441.8,0.40958]
[1728360429877,0.80109,2441.9,2441.8,0.40958]
[1728360433698,0.80109,2441.9,2441.7,0.392]
[1728360433699,0.40959,2441.8,2441.7,0.392]
[1728360433875,3.6354,2441.8,2441.4,1.48]
[1728360434179,0.40963,2441.6,2441.5,0.40963]
[1728360434573,0.81493,2441.6,2441.5,0.40963]
[1728360435830,0.81493,2441.6,2441.4,0.4041]
[1728360435831,0.40964,2441.5,2441.4,0.4041]
[1728360435980,0.4276,2441.5,2441.4,2.29376]
[1728360436482,0.4276,2441.5,2441.4,1.8841]
[1728360436780,0.83724,2441.5,2441.4,2.29376]
[1728360441170,0.83724,2441.5,2441.4,0.81376]
[1728360441374,3.6354,2441.5,2441.2,0.40968]
[1728360441575,0.40967,2441.3,2441.2,0.40968]
[1728360442086,0.81047,2441.3,2441.2,0.40968]
[1728360445484,0.40971,2441.1,2441.0,0.40971]
[1728360445983,2.90501,2441.3,2440.9,0.8195]
[1728360446180,2.90501,2441.3,2440.9,0.81513]
[1728360446181,0.81532,2441.0,2440.9,0.81513]
[1728360447180,0.81532,2441.0,2440.9,0.86173]
[1728360450584,0.81532,2441.0,2440.9,0.452]
[1728360451081,0.4056,2441.0,2440.9,0.86174]
[1728360451272,0.81532,2441.0,2440.9,2.34174]
[1728360452085,0.81532,2441.0,2440.9,0.86174]
[1728360452684,0.4056,2441.0,2440.9,0.86174]
[1728360454995,1.22072,2441.1,2441.0,0.40972]
[1728360455282,0.811,2441.1,2441.0,0.40972]
[1728360455475,0.4097,2441.2,2441.1,0.40971]
[1728360455874,4.5065,2441.2,2441.1,0.40971]
[1728360456076,3.6175,2441.2,2441.1,0.40971]
[1728360456477,0.40972,2441.1,2441.0,0.40972]
[1728360457487,3.6175,2441.2,2441.1,0.40971]
[1728360457994,7.7143,2441.2,2441.1,0.40971]
[1728360459787,4.5065,2441.2,2441.1,0.40971]
[1728360460093,0.40971,2441.1,2441.0,0.80691]
[1728360462488,0.40971,2441.1,2441.0,0.40971]
[1728360467494,3.6175,2441.2,2441.1,0.40971]
[1728360467891,7.7143,2441.2,2441.1,0.40971]
[1728360468493,4.5065,2441.2,2441.1,0.40971]
[1728360468896,7.7143,2441.2,2441.1,0.40971]
[1728360469147,7.3046,2441.2,2440.9,0.8054]
[1728360469321,0.40972,2441.1,2441.0,0.40971]
[1728360469993,0.40972,2441.1,2441.0,0.45631]
[1728360472400,3.6175,2441.2,2441.1,0.40971]
[1728360472791,7.7143,2441.2,2441.1,0.40971]
[1728360472999,3.6175,2441.2,2441.1,0.40971]
[1728360473800,0.4097,2441.2,2441.1,0.40971]
[1728360474001,3.6175,2441.2,2441.1,0.40971]
[1728360474499,0.4097,2441.2,2441.1,0.40971]
[1728360475097,3.6175,2441.2,2441.1,0.40971]
[1728360476105,0.4097,2441.2,2441.1,0.40971]
[1728360476501,3.6175,2441.2,2441.1,0.40971]
[1728360477299,0.4097,2441.2,2441.1,0.40971]
[1728360477498,3.6175,2441.2,2441.1,0.40971]
[1728360478802,0.4097,2441.2,2441.1,0.40971]
[1728360479396,3.6175,2441.2,2441.1,0.40971]
[1728360479598,0.4097,2441.2,2441.1,0.40971]
[1728360479999,3.6175,2441.2,2441.1,0.40971]
[1728360481601,5.0975,2441.2,2441.1,0.40971]
[1728360482396,3.2078,2441.2,2441.1,0.40971]
[1728360482720,1.02408,2441.6,2441.1,1.48]
[1728360482895,0.80095,2441.5,2441.4,0.40964]
[1728360485307,0.40966,2441.4,2441.3,0.40966]
[1728360485700,0.40967,2441.3,2441.2,1.21178]
[1728360485907,0.40967,2441.3,2441.2,0.81018]
[1728360485908,3.61747,2441.3,2441.2,0.81018]
[1728360486312,4.03237,2441.3,2441.2,0.81018]
[1728360487602,4.43287,2441.3,2441.2,0.81018]
[1728360488608,4.0232,2441.3,2441.0,0.0466]
[1728360488809,0.40971,2441.1,2441.0,0.87231]
[1728360489004,0.40971,2441.1,2441.0,0.4626]
[1728360489205,1.88971,2441.1,2441.0,0.0466]
[1728360494201,5.98651,2441.1,2441.0,0.0466]
[1728360494404,11.98651,2441.1,2441.0,0.0466]
[1728360494814,12.05074957,2441.1,2441.0,0.0466]
[1728360495111,11.98651,2441.1,2441.0,0.0466]
[1728360495603,12.05075022,2441.1,2441.0,0.0466]
[1728360499071,12.05075196,2441.1,2441.0,0.0466]
[1728360502912,11.98651,2441.1,2441.0,0.0466]
[1728360503218,12.05075644,2441.1,2441.0,0.0466]
[1728360506626,12.05075644,2441.1,2441.0,1e-05]
[1728360506822,11.64104644,2441.1,2440.7,0.476]
[1728360507130,0.40983,2440.4,2440.3,1.2859]
[1728360507430,1.88983,2440.4,2440.3,0.8099]
[1728360509918,5.09763,2440.4,2440.3,0.8099]
[1728360510426,5.09763,2440.4,2440.3,1.21974]
[1728360513523,4.6878,2440.4,2440.3,1.21974]
[1728360514137,1.48,2440.4,2440.3,1.21974]
[1728360514431,4.6878,2440.4,2440.3,1.21974]
[1728360517222,5.09763,2440.4,2440.3,1.21974]
[1728360519424,5.09763,2440.4,2440.3,0.8099]
[1728360519635,5.09763,2440.4,2440.3,1.21974]
[1728360520622,5.09763,2440.4,2440.3,0.8099]
[1728360522234,3.61763,2440.4,2440.3,0.8099]
[1728360522430,5.09763,2440.4,2440.3,0.8099]
[1728360525135,5.09763,2440.4,2440.3,1.21974]
[1728360525136,3.61763,2440.4,2440.3,1.21974]
[1728360525332,3.2078,2440.4,2440.3,1.21974]
[1728360528037,3.2078,2440.4,2440.3,5.31734]
[1728360528443,0.40978,2440.7,2440.6,0.40979]
[1728360528638,1.72097,2440.9,2440.4,1.48]
[1728360528639,1.43497,2440.9,2440.4,1.48]
[1728360528834,1.43497,2440.9,2440.5,0.4098]
[1728360529039,0.40979,2440.7,2440.6,0.4227]
[1728360529343,0.40977,2440.8,2440.6,1.24039]
[1728360529537,0.40977,2440.8,2440.7,0.3961]
[1728360535352,1.88977,2440.8,2440.7,0.3961]
[1728360535551,2.28487,2440.8,2440.7,0.3961]
[1728360538263,5.49267,2440.8,2440.7,0.3961]
[1728360539796,0.40978,2440.7,2440.6,0.8306]
[1728360541892,0.40978,2440.7,2440.6,1.24039]
[1728360542281,0.40978,2440.7,2440.6,0.8306]
[1728360542715,0.80978,2440.7,2440.6,0.4079]
[1728360543893,0.80978,2440.7,2440.6,0.81769]
[1728360544699,0.4,2440.7,2440.6,0.81769]
[1728360545779,0.4,2440.7,2440.6,0.4079]
[1728360545983,0.80978,2440.7,2440.6,0.4079]
[1728360547470,0.4,2440.7,2440.3,1.48]
[1728360547681,0.4,2440.7,2440.2,0.4038]